bitfinex-derivatives/quotes_BTCF0:USTF0_20241003
["timestamp","ask_amount","ask_price","bid_price","bid_amount"]
[1727932809251,0.3608,61242.0,61240.0,0.06532]
[1727932809451,0.04122527,61241.0,61240.0,0.06532]
[1727932809651,0.3608,61242.0,61241.0,0.09]
[1727932809856,0.40201008,61242.0,61241.0,0.09]
[1727932810848,0.40601008,61242.0,61241.0,0.09]
[1727932811852,0.41001008,61242.0,61241.0,0.09]
[1727932813153,0.41001008,61242.0,61241.0,0.155318]
[1727932813460,0.4100241,61242.0,61234.0,0.0038]
[1727932813652,0.3688,61242.0,61241.0,0.09]
[1727932813963,0.40994529,61242.0,61241.0,0.09]
[1727932814862,0.3688,61242.0,61241.0,0.155318]
[1727932815157,0.3648,61242.0,61241.0,0.155318]
[1727932815856,0.3688,61242.0,61241.0,0.155318]
[1727932816746,0.008,61242.0,61241.0,0.155318]
[1727932817665,0.008,61242.0,61241.0,0.22054004]
[1727932818458,0.008,61242.0,61241.0,0.22052611]
[1727932818459,0.004,61242.0,61241.0,0.22052611]
[1727932818761,0.004,61242.0,61241.0,0.22252611]
[1727932819355,0.004,61242.0,61241.0,0.157318]
[1727932820263,0.0038,61249.0,61246.0,0.065313]
[1727932820459,0.3608,61250.0,61246.0,0.155313]
[1727932820661,0.3608,61250.0,61246.0,0.065313]
[1727932821349,0.002,61249.0,61246.0,0.065313]
[1727932821955,0.3648,61250.0,61246.0,0.065313]
[1727932822560,0.3628,61250.0,61246.0,0.065313]
[1727932822765,0.003,61249.0,61246.0,0.065313]
[1727932823654,0.065312,61247.0,61243.0,0.065316]
[1727932825554,0.065312,61247.0,61243.0,0.066316]
[1727932825762,0.065312,61247.0,61244.0,0.065315]
[1727932826559,0.0317,61249.0,61243.0,0.001]
[1727932826758,0.065314,61246.0,61243.0,0.001]
[1727932826961,0.065314,61245.0,61243.0,0.001]
[1727932827762,0.065314,61245.0,61242.0,0.097017]
[1727932828574,0.071314,61245.0,61242.0,0.097017]
[1727932828770,0.006,61245.0,61242.0,0.097017]
[1727932829170,0.006,61245.0,61243.0,0.065316]
[1727932830172,0.003,61245.0,61243.0,0.065316]
[1727932830474,0.005,61245.0,61243.0,0.065316]
[1727932830772,0.003,61245.0,61243.0,0.065316]
[1727932830972,0.005,61245.0,61243.0,0.065316]
[1727932831361,0.005,61245.0,61244.0,0.09]
[1727932831774,0.006,61245.0,61244.0,0.09]
[1727932832669,0.003,61245.0,61244.0,0.09]
[1727932832869,0.007,61245.0,61244.0,0.09]
[1727932833475,0.008,61245.0,61244.0,0.09]
[1727932834767,0.008,61245.0,61244.0,0.155315]
[1727932840070,0.008,61245.0,61244.0,0.34371499]
[1727932840576,0.008,61245.0,61244.0,0.155315]
[1727932841480,0.008,61245.0,61244.0,0.2367062]
[1727932842073,0.008,61245.0,61244.0,0.34377378]
[1727932842280,0.008,61245.0,61244.0,0.2367062]
[1727932842472,0.008,61245.0,61244.0,0.343778]
[1727932843579,0.008,61245.0,61244.0,0.2623868]
[1727932843772,0.008,61245.0,61244.0,0.34401008]
[1727932844373,0.008,61245.0,61244.0,0.2623868]
[1727932844776,0.008,61245.0,61244.0,0.155315]
[1727932846682,0.008,61245.0,61244.0,0.065315]
[1727932848885,0.008,61245.0,61244.0,0.1469468]
[1727932849582,0.008,61245.0,61244.0,0.065315]
[1727932849883,0.008,61245.0,61244.0,0.25404502]
[1727932850186,0.008,61245.0,61244.0,0.1469468]
[1727932851779,0.04783617,61245.0,61244.0,0.065315]
[1727932859879,0.008,61245.0,61244.0,0.17246004]
[1727932860482,0.008,61245.0,61244.0,0.17244909]
[1727932863787,0.008,61245.0,61244.0,0.25412687]
[1727932864089,0.008,61245.0,61244.0,0.17244909]
[1727932864293,0.008,61245.0,61244.0,0.17246691]
[1727932864593,0.3688,61245.0,61244.0,0.25414436]
[1727932866278,0.3688,61245.0,61244.0,0.18882936]
[1727932866502,0.434114,61245.0,61241.0,0.09891885]
[1727932866790,0.434114,61245.0,61242.0,0.065317]
[1727932866990,0.03971733,61244.0,61242.0,0.065317]
[1727932867179,0.03971733,61243.0,61242.0,0.065317]
[1727932868395,0.04171733,61243.0,61242.0,0.065317]
[1727932868785,0.40251733,61243.0,61242.0,0.065317]
[1727932868985,0.40451733,61243.0,61242.0,0.065317]
[1727932869496,0.065321,61239.0,61235.0,0.065325]
[1727932869687,0.065322,61238.0,61235.0,0.065325]
[1727932869990,0.03944702,61237.0,61235.0,0.065325]
[1727932870198,0.065323,61237.0,61235.0,0.065325]
[1727932870683,0.062323,61237.0,61235.0,0.065325]
[1727932871090,0.062323,61237.0,61235.0,0.071325]
[1727932871482,0.063323,61237.0,61235.0,0.077325]
[1727932871788,0.3608,61236.0,61235.0,0.077325]
[1727932872981,0.3608,61236.0,61235.0,0.09478983]
[1727932873386,0.3618,61236.0,61235.0,0.09378983]
[1727932873591,0.3618,61236.0,61235.0,0.08778983]
[1727932873891,0.428124,61236.0,61235.0,0.011]
[1727932874394,1.557385,61236.0,61228.0,0.00624939]
[1727932874594,1.557385,61236.0,61228.0,0.00244939]
[1727932874595,0.065329,61231.0,61228.0,0.00244939]
[1727932874789,0.065329,61231.0,61228.0,0.06778139]
[1727932875087,0.09,61232.0,61228.0,0.08451259]
[1727932875088,0.065331,61230.0,61228.0,0.08451259]
[1727932875493,0.065331,61230.0,61228.0,0.14975661]
[1727932876493,0.065331,61230.0,61228.0,0.08451259]
[1727932876894,0.065331,61230.0,61228.0,0.09351259]
[1727932877292,0.065331,61230.0,61228.0,0.08751259]
[1727932877595,0.001,61230.0,61229.0,0.04888261]
[1727932877894,0.002,61230.0,61229.0,0.13057502]
[1727932878588,0.002,61230.0,61229.0,0.065331]
[1727932878791,0.002,61230.0,61229.0,0.13057502]
[1727932879400,0.002,61230.0,61229.0,0.06524402]
[1727932879692,0.065332,61228.0,61227.0,0.04886908]
[1727932879995,0.065332,61228.0,61222.0,0.05266908]
[1727932879996,0.065337,61225.0,61222.0,0.05266908]
[1727932880194,0.065337,61225.0,61219.0,0.13058502]
[1727932880195,0.3608,61223.0,61219.0,0.06524402]
[1727932880393,0.426138,61223.0,61215.0,0.0038]
[1727932880594,0.49004,61222.0,61212.0,0.0038]
[1727932880786,0.065346,61215.0,61212.0,0.0038]
[1727932880988,0.09,61213.0,61206.0,0.06904402]
[1727932881191,0.09,61213.0,61202.0,0.20237745]
[1727932881192,0.065347,61214.0,61204.0,0.13060202]
[1727932881398,0.09,61213.0,61204.0,0.13060202]
[1727932881708,0.09,61213.0,61204.0,0.065358]
[1727932881996,0.09,61213.0,61205.0,0.065357]
[1727932882583,0.09,61209.0,61205.0,0.065357]
[1727932882791,0.09,61211.0,61205.0,0.065357]
[1727932883897,0.001,61209.0,61205.0,0.065357]
[1727932884200,0.001,61209.0,61206.0,0.09]
[1727932884395,0.092,61211.0,61205.0,0.065357]
[1727932885793,0.001,61211.0,61209.0,0.09]
[1727932886192,0.0038,61216.0,61209.0,0.09]
[1727932886501,0.0038,61220.0,61215.0,0.09]
[1727932886699,0.065339,61222.0,61219.0,0.09]
[1727932887501,0.065339,61222.0,61217.0,0.09]
[1727932887707,0.065343,61219.0,61216.0,0.0936]
[1727932890306,0.09,61217.0,61216.0,0.0611]
[1727932891001,0.09,61217.0,61214.0,0.01748567]
[1727932891204,0.09,61217.0,61213.0,0.065348]
[1727932891604,0.09,61217.0,61213.0,0.08262616]
[1727932892908,0.09,61214.0,61213.0,0.01727816]
[1727932893205,0.09,61214.0,61206.0,0.1529]
[1727932893395,0.06535,61212.0,61206.0,0.218255]
[1727932894205,0.06535,61212.0,61206.0,0.23537448]
[1727932895199,0.06535,61212.0,61206.0,0.14537448]
[1727932895900,0.06635,61212.0,61206.0,0.14537448]
[1727932896498,0.06735,61212.0,61206.0,0.14537448]
[1727932898404,0.4508,61207.0,61193.0,0.42604402]
[1727932898599,0.065361,61202.0,61199.0,0.09]
[1727932900009,0.066361,61202.0,61199.0,0.09]
[1727932900518,0.067361,61202.0,61199.0,0.09]
[1727932904411,0.002,61202.0,61199.0,0.09]
[1727932905106,0.002,61202.0,61201.0,0.08167745]
[1727932905416,0.002,61202.0,61201.0,0.10805917]
[1727932905710,0.002,61202.0,61201.0,0.19805917]
[1727932909411,0.002,61202.0,61201.0,0.2958393]
[1727932910101,0.002,61202.0,61201.0,0.09]
[1727932910313,0.002,61202.0,61201.0,0.19830174]
[1727932910515,0.002,61202.0,61201.0,0.21524136]
[1727932911312,0.002,61202.0,61201.0,0.28060236]
[1727932911714,0.002,61202.0,61201.0,0.37849398]
[1727932912411,0.002,61202.0,61201.0,0.28060236]
[1727932913523,0.002,61202.0,61201.0,0.37848832]
[1727932913715,0.002,61202.0,61201.0,0.22312732]
[1727932914922,0.002,61202.0,61201.0,0.22316076]
[1727932915819,0.3608,61203.0,61201.0,0.1252748]
[1727932916117,0.3608,61203.0,61202.0,0.20621302]
[1727932916316,0.3608,61203.0,61202.0,0.10833518]
[1727932916717,0.3608,61203.0,61202.0,0.29621302]
[1727932916924,0.3608,61203.0,61202.0,0.10833518]
[1727932917425,0.3628,61203.0,61202.0,0.10833518]
[1727932917810,0.3628,61203.0,61202.0,0.20621302]
[1727932920125,0.3628,61203.0,61202.0,0.08159642]
[1727932920424,0.3628,61203.0,61202.0,0.10838178]
[1727932922929,0.3628,61203.0,61202.0,0.10839829]
[1727932925425,0.3628,61203.0,61202.0,0.17375829]
[1727932925627,0.3628,61203.0,61202.0,0.10839829]
[1727932926725,0.428159,61203.0,61202.0,0.10839829]
[1727932926930,0.428159,61203.0,61202.0,0.19009066]
[1727932927131,0.428159,61203.0,61202.0,0.20642869]
[1727932927430,1.45296,61203.0,61201.0,0.0980304]
[1727932927630,0.065363,61199.0,61198.0,0.0980304]
[1727932927824,0.065363,61199.0,61198.0,0.10888877]
[1727932927825,0.09,61199.0,61198.0,0.10888877]
[1727932928032,0.155363,61199.0,61198.0,0.10888877]
[1727932928423,0.155363,61199.0,61193.0,0.0038]
[1727932928424,1.541,61199.0,61197.0,0.0653448]
[1727932928624,1.0508,61199.0,61196.0,0.0653448]
[1727932928825,0.09,61197.0,61195.0,0.0653448]
[1727932929018,0.155367,61196.0,61195.0,0.0653448]
[1727932929223,0.58024,61196.0,61195.0,0.0651448]
[1727932929422,0.58024,61196.0,61189.0,0.08167544]
[1727932929423,1.18024,61196.0,61189.0,0.08167544]
[1727932929622,0.36360001,61199.0,61186.0,0.00245143]
[1727932929623,0.09,61192.0,61188.0,0.08167544]
[1727932929928,0.065365,61197.0,61196.0,0.001]
[1727932930231,0.065372,61191.0,61190.0,0.0038]
[1727932930436,1.386965,61197.0,61182.0,0.0317]
[1727932930437,0.066367,61196.0,61195.0,0.001]
[1727932930733,0.066367,61196.0,61189.0,0.0038]
[1727932930734,0.065373,61190.0,61189.0,0.0038]
[1727932931030,0.065373,61190.0,61183.0,0.0038]
[1727932931031,0.065379,61184.0,61183.0,0.0038]
[1727932931228,0.09,61183.0,61181.0,0.08167544]
[1727932931435,0.09,61183.0,61179.0,0.08167544]
[1727932931633,0.09,61180.0,61179.0,0.08167544]
[1727932931928,0.09,61180.0,61177.0,0.08231492]
[1727932932335,0.09,61180.0,61179.0,0.08148296]
[1727932933332,0.09,61180.0,61178.0,0.08148296]
[1727932933928,0.001,61180.0,61178.0,0.155385]
[1727932934630,0.002,61180.0,61178.0,0.155385]
[1727932935430,0.002,61180.0,61179.0,0.065385]
[1727932935827,0.0038,61187.0,61178.0,0.09]
[1727932936026,0.0038,61191.0,61186.0,0.09]
[1727932936228,0.72348001,61197.0,61190.0,0.09]
[1727932936425,0.72348001,61197.0,61193.0,0.065369]
[1727932937236,0.36268001,61197.0,61194.0,0.155369]
[1727932937422,0.36268001,61197.0,61194.0,0.09]
[1727932937423,0.3608,61197.0,61194.0,0.09]
[1727932937627,0.00245196,61203.0,61202.0,0.06536]
[1727932937823,0.00245196,61203.0,61202.0,0.19536]
[1727932938430,0.00245196,61203.0,61202.0,0.06536]
[1727932939530,0.00945196,61203.0,61202.0,0.06536]
[1727932939725,0.00945196,61203.0,61197.0,0.14675595]
[1727932939939,0.13945196,61203.0,61197.0,0.065364]
[1727932940236,0.3608,61198.0,61197.0,0.065364]
[1727932940432,0.3608,61198.0,61195.0,0.01691479]
[1727932940640,0.3608,61198.0,61195.0,0.08139195]
[1727932940937,0.3608,61198.0,61194.0,0.14676095]
[1727932941132,0.3608,61198.0,61195.0,0.08139195]
[1727932941634,0.3608,61198.0,61195.0,0.14675995]
[1727932942031,0.3608,61198.0,61195.0,0.065368]
[1727932945546,0.3608,61196.0,61195.0,0.065368]
[1727932946132,0.3608,61196.0,61192.0,0.0333]
[1727932948348,0.065368,61195.0,61191.0,0.08289982]
[1727932948538,0.065369,61194.0,61192.0,0.001]
[1727932950043,0.06537,61193.0,61191.0,0.01852882]
[1727932950247,0.3608,61196.0,61191.0,0.001]
[1727932950248,0.065371,61192.0,61191.0,0.001]
[1727932951346,0.555651,61192.0,61191.0,0.001]
[1727932951541,1.218751,61192.0,61187.0,0.0038]
[1727932951739,0.4908,61188.0,61182.0,0.0038]
[1727932952043,0.065377,61186.0,61183.0,0.06538]
[1727932952352,0.064377,61186.0,61184.0,0.065379]
[1727932953150,0.065377,61186.0,61184.0,0.065379]
[1727932954251,0.065377,61186.0,61183.0,0.001]
[1727932954850,0.065377,61186.0,61180.0,0.065384]
[1727932955243,0.001,61186.0,61179.0,0.08139195]
[1727932955443,0.001,61186.0,61182.0,0.21139195]
[1727932955644,0.001,61186.0,61185.0,0.065377]
[1727932957942,0.3608,61188.0,61185.0,0.065377]
[1727932958147,0.001,61186.0,61185.0,0.065377]
[1727932959158,0.3618,61188.0,61185.0,0.065377]
[1727932960450,0.3618,61188.0,61185.0,0.08253641]
[1727932961559,0.001,61186.0,61185.0,0.08253641]
[1727932962260,0.3618,61188.0,61185.0,0.08253641]
[1727932963056,0.001,61186.0,61185.0,0.01715941]
[1727932963255,0.001,61186.0,61179.0,0.1338]
[1727932963459,0.001,61186.0,61182.0,0.065381]
[1727932965265,0.001,61186.0,61183.0,0.2563333]
[1727932965467,0.36368001,61188.0,61187.0,0.065376]
[1727932965661,0.3618,61188.0,61187.0,0.065376]
[1727932966066,0.3618,61188.0,61187.0,0.130976]
[1727932966261,0.3618,61188.0,61187.0,0.32189766]
[1727932966460,0.3618,61188.0,61187.0,0.130976]
[1727932966461,0.3608,61188.0,61187.0,0.130976]
[1727932967666,0.3608,61188.0,61187.0,0.25713228]
[1727932968478,0.3618,61188.0,61187.0,0.25713228]
[1727932969787,0.3618,61188.0,61187.0,0.14772993]
[1727932969986,0.3618,61188.0,61187.0,0.33881286]
[1727932970187,0.3618,61188.0,61187.0,0.14772993]
[1727932970986,0.557175,61188.0,61186.0,0.08154801]
[1727932971171,0.557175,61188.0,61185.0,0.08154801]
[1727932971572,0.557175,61188.0,61184.0,0.1297392]
[1727932972285,0.065377,61187.0,61184.0,0.04819119]
[1727932972875,0.065377,61187.0,61184.0,0.01689119]
[1727932973080,0.065377,61187.0,61182.0,0.065381]
[1727932973486,0.065377,61187.0,61182.0,0.08266498]
[1727932974488,0.066377,61187.0,61182.0,0.08266498]
[1727932974690,0.066377,61187.0,61183.0,0.06538]
[1727932978497,0.3608,61184.0,61183.0,0.06538]
[1727932978990,0.42618,61184.0,61180.0,0.065383]
[1727932980388,0.42618,61184.0,61182.0,0.0980304]
[1727932980586,0.42618,61184.0,61183.0,0.10979681]
[1727932980787,0.42718,61184.0,61183.0,0.10979681]
[1727932981389,0.42618,61184.0,61183.0,0.19148506]
[1727932981590,0.42718,61184.0,61183.0,0.10979681]
[1727932981797,0.42718,61184.0,61183.0,0.10989804]
[1727932982594,0.42718,61184.0,61183.0,0.19158286]
[1727932982795,0.42718,61184.0,61183.0,0.10989804]
[1727932983387,0.3618,61184.0,61183.0,0.17527804]
[1727932984395,0.3618,61184.0,61183.0,0.40330844]
[1727932984602,0.3618,61184.0,61183.0,0.30527804]
[1727932984806,0.3618,61184.0,61183.0,0.43617604]
[1727932986292,0.3618,61184.0,61183.0,0.32625253]
[1727932986493,0.3618,61184.0,61183.0,0.43604845]
[1727932987301,0.3628,61184.0,61183.0,0.43604845]
[1727932989593,0.3628,61184.0,61183.0,0.39604845]
[1727932989791,0.3628,61184.0,61183.0,0.26517592]
[1727932991094,0.3628,61184.0,61183.0,0.26512592]
[1727932991490,0.3628,61184.0,61183.0,0.29067901]
[1727932991997,0.3628,61184.0,61183.0,0.29067909]
[1727932992400,0.3618,61184.0,61183.0,0.29067909]
[1727932992699,0.3628,61184.0,61183.0,0.29067909]
[1727932993095,0.3628,61184.0,61183.0,0.38869737]
[1727932993601,0.3628,61184.0,61183.0,0.29067909]
[1727932994294,0.3618,61184.0,61183.0,0.29067909]
[1727932994496,0.3628,61184.0,61183.0,0.29067909]
[1727932995000,0.3628,61184.0,61183.0,0.29067918]
[1727932995209,0.3628,61184.0,61183.0,0.18093326]
[1727932996301,0.3628,61184.0,61183.0,0.15538]
[1727933001310,0.002,61184.0,61183.0,0.15538]
[1727933001503,0.3628,61184.0,61183.0,0.15538]
[1727933003705,0.3618,61184.0,61183.0,0.15538]
[1727933003904,0.3628,61184.0,61183.0,0.06538]
[1727933005509,0.065383,61181.0,61178.0,0.01732918]
[1727933005708,0.065383,61181.0,61179.0,0.02555373]
[1727933005899,0.065383,61181.0,61180.0,0.02555373]
[1727933006515,0.065383,61181.0,61176.0,0.04919068]
[1727933006811,0.065383,61181.0,61178.0,0.09]
[1727933007012,0.065383,61181.0,61179.0,0.0255543]
[1727933007213,0.065383,61181.0,61178.0,0.09]
[1727933007402,0.065383,61181.0,61179.0,0.02555432]
[1727933007600,0.066383,61181.0,61178.0,0.09]
[1727933007812,0.066383,61181.0,61179.0,0.02555432]
[1727933008014,0.066383,61181.0,61178.0,0.09]
[1727933008214,0.066383,61181.0,61179.0,0.02555432]
[1727933008414,0.065383,61181.0,61178.0,0.09]
[1727933008813,0.065383,61181.0,61179.0,0.02555432]
[1727933009014,0.065383,61181.0,61178.0,0.09]
[1727933009214,0.065383,61181.0,61179.0,0.02555432]
[1727933009419,0.065383,61181.0,61178.0,0.09]
[1727933009611,0.065384,61180.0,61179.0,0.02555432]
[1727933010812,0.42798001,61184.0,61179.0,0.11555432]
[1727933011014,0.065381,61183.0,61180.0,0.02555444]
[1727933011315,0.065381,61183.0,61181.0,0.04902745]
[1727933015920,0.065381,61183.0,61181.0,0.04902745]
[1727933016322,0.065381,61183.0,61182.0,0.04902745]
[1727933017421,0.065381,61183.0,61182.0,0.10966432]
[1727933019819,0.3608,61184.0,61183.0,0.06538]
[1727933020023,0.3608,61189.0,61188.0,0.065375]
[1727933020218,0.3608,61189.0,61188.0,0.26503932]
[1727933020412,0.3608,61189.0,61188.0,0.3630571]
[1727933020618,0.3608,61189.0,61188.0,0.26503932]
[1727933020925,0.3608,61189.0,61188.0,0.36303704]
[1727933021419,0.3668,61189.0,61188.0,0.36303704]
[1727933022014,0.3668,61189.0,61188.0,0.26503932]
[1727933022613,0.3668,61189.0,61188.0,0.29723932]
[1727933022814,0.006,61189.0,61188.0,0.45313372]
[1727933023120,0.0038,61197.0,61194.0,0.065368]
[1727933023324,0.36325167,61198.0,61196.0,0.09]
[1727933023521,0.36325167,61198.0,61197.0,0.08159988]
[1727933023824,0.36325167,61198.0,61196.0,0.17159988]
[1727933024019,0.36325167,61198.0,61196.0,0.09]
[1727933024223,0.00245167,61198.0,61197.0,0.17446408]
[1727933024420,0.03045167,61198.0,61197.0,0.23636408]
[1727933025224,0.03045167,61198.0,61197.0,0.127265]
[1727933025418,0.01645167,61198.0,61197.0,0.127265]
[1727933025612,0.019,61198.0,61197.0,0.127265]
[1727933026027,0.005,61198.0,61197.0,0.15281211]
[1727933026218,0.019,61198.0,61197.0,0.15281211]
[1727933027126,0.009,61198.0,61197.0,0.15281211]
[1727933027630,0.099,61198.0,61197.0,0.02554711]
[1727933027827,0.099,61198.0,61188.0,0.0038]
[1727933028133,0.09,61195.0,61190.0,0.09]
[1727933028633,0.09,61195.0,61190.0,0.155373]
[1727933029830,0.09,61195.0,61191.0,0.065371]
[1727933030228,0.09,61195.0,61192.0,0.06537]
[1727933030535,0.065367,61196.0,61192.0,0.06537]
[1727933031230,0.001,61195.0,61192.0,0.06537]
[1727933031842,0.068367,61196.0,61192.0,0.06537]
[1727933032142,0.068367,61196.0,61193.0,0.065369]
[1727933032736,0.3608,61194.0,61193.0,0.065369]
[1727933032937,0.3608,61194.0,61191.0,0.065372]
[1727933033138,0.3608,61194.0,61193.0,0.06537]
[1727933033522,0.3608,61194.0,61193.0,0.15537]
[1727933033934,0.3638,61194.0,61193.0,0.15537]
[1727933035837,0.3678,61194.0,61193.0,0.15537]
[1727933041240,0.4578,61194.0,61188.0,0.01713813]
[1727933041539,0.523169,61194.0,61188.0,0.065375]
[1727933041928,0.523169,61194.0,61186.0,0.01678111]
[1727933042134,0.155374,61190.0,61185.0,0.0038]
[1727933042328,0.155374,61190.0,61184.0,0.065379]
[1727933042329,0.3608,61186.0,61184.0,0.065379]
[1727933043544,0.3608,61186.0,61184.0,0.08260438]
[1727933044037,0.3618,61186.0,61184.0,0.08760438]
[1727933044434,0.3628,61186.0,61184.0,0.08260438]
[1727933044636,0.3618,61186.0,61184.0,0.08260438]
[1727933044943,0.001,61186.0,61184.0,0.08260438]
[1727933045138,0.3608,61185.0,61184.0,0.08260438]
[1727933045345,0.3608,61185.0,61184.0,0.17260438]
[1727933047443,0.3608,61185.0,61184.0,0.28197089]
[1727933048142,0.3618,61185.0,61184.0,0.37986053]
[1727933048350,0.001,61185.0,61184.0,0.28197089]
[1727933048537,0.001,61185.0,61184.0,0.41206898]
[1727933049247,0.001,61185.0,61184.0,0.43761997]
[1727933049646,0.3608,61190.0,61189.0,0.065374]
[1727933049837,0.3608,61190.0,61189.0,0.36265712]
[1727933050948,0.3658,61190.0,61189.0,0.36265712]
[1727933051436,0.3718,61190.0,61189.0,0.26474051]
[1727933051953,0.31456585,61190.0,61189.0,0.26474051]
[1727933052447,0.0038,61198.0,61194.0,0.065369]
[1727933052646,0.0038,61204.0,61196.0,0.18790528]
[1727933052947,0.096658,61205.0,61202.0,0.09]
[1727933053549,0.096658,61205.0,61204.0,0.06525572]
[1727933054046,0.096658,61205.0,61202.0,0.09]
[1727933054047,0.013,61204.0,61202.0,0.09]
[1727933054252,0.013,61204.0,61203.0,0.06525146]
[1727933054467,0.3608,61205.0,61202.0,0.13893919]
[1727933054656,0.3748,61205.0,61202.0,0.13893919]
[1727933055167,0.3748,61205.0,61204.0,0.065358]
[1727933055667,0.3748,61205.0,61204.0,0.26060946]
[1727933055865,0.3888,61205.0,61204.0,0.26060946]
[1727933056566,0.3748,61205.0,61204.0,0.195358]
[1727933056966,0.014,61205.0,61204.0,0.195358]
[1727933057161,0.014,61205.0,61204.0,0.26060946]
[1727933057359,0.014,61205.0,61204.0,0.196358]
[1727933057564,0.014,61205.0,61204.0,0.197358]
[1727933057565,0.028,61205.0,61204.0,0.197358]
[1727933059267,0.028,61205.0,61204.0,0.24624448]
[1727933059659,0.028,61205.0,61204.0,0.197358]
[1727933060369,0.3888,61205.0,61204.0,0.11623469]
[1727933060572,0.3888,61205.0,61204.0,0.067358]
[1727933061872,0.028,61205.0,61204.0,0.067358]
[1727933070887,0.0278,61205.0,61204.0,0.067358]
[1727933077481,0.3886,61205.0,61204.0,0.157358]
[1727933081282,0.3886,61205.0,61204.0,0.20623469]
[1727933082078,0.0038,61212.0,61204.0,0.157358]
[1727933082281,0.3652,61225.0,61209.0,0.09]
[1727933082282,0.0038,61215.0,61209.0,0.09]
[1727933082487,0.0038,61220.0,61218.0,0.065343]
[1727933082691,0.0309,61223.0,61219.0,0.13898134]
[1727933082992,0.0309,61223.0,61218.0,0.065343]
[1727933082993,0.0309,61223.0,61222.0,0.09]
[1727933084081,0.0429,61223.0,61222.0,0.091]
[1727933084282,0.012,61223.0,61222.0,0.091]
[1727933084679,0.09594948,61223.0,61222.0,0.091]
[1727933085287,0.05084667,61223.0,61222.0,0.091]
[1727933085485,0.05384667,61223.0,61222.0,0.091]
[1727933085786,0.09897413,61223.0,61222.0,0.091]
[1727933086089,0.05384667,61223.0,61222.0,0.091]
[1727933086290,0.04185163,61223.0,61222.0,0.09]
[1727933086494,0.04485163,61223.0,61222.0,0.10692091]
[1727933086791,0.04485163,61223.0,61222.0,0.17225991]
[1727933086994,0.04285163,61223.0,61222.0,0.17225991]
[1727933087190,0.04085163,61223.0,61222.0,0.17225991]
[1727933087590,0.002,61223.0,61222.0,0.17225991]
[1727933089597,0.001,61223.0,61222.0,0.17225991]
[1727933090496,0.001,61223.0,61222.0,0.17725991]
[1727933090796,0.0354,61229.0,61225.0,0.065336]
[1727933090991,0.03897246,61228.0,61225.0,0.065336]
[1727933091196,0.03897246,61227.0,61225.0,0.065336]
[1727933091392,0.0316,61229.0,61225.0,0.065336]
[1727933091593,0.03898519,61228.0,61222.0,0.02692091]
[1727933091787,0.0316,61229.0,61222.0,0.02192091]
[1727933091983,0.03899374,61228.0,61222.0,0.02192091]
[1727933092188,0.0316,61229.0,61228.0,0.09]
[1727933092588,0.3924,61229.0,61228.0,0.09]
[1727933093701,0.3944,61229.0,61228.0,0.09]
[1727933094195,0.3964,61229.0,61228.0,0.09]
[1727933094590,0.3964,61229.0,61228.0,0.155332]
[1727933096095,0.3944,61229.0,61228.0,0.155332]
[1727933096497,0.3924,61229.0,61228.0,0.155332]
[1727933099598,0.43231432,61229.0,61228.0,0.155332]
[1727933099804,0.43331432,61229.0,61228.0,0.155332]
[1727933103305,0.43531432,61229.0,61228.0,0.155332]
[1727933103506,0.4353735,61229.0,61228.0,0.155332]
[1727933103805,0.4363735,61229.0,61228.0,0.065332]
[1727933104310,0.4353735,61229.0,61228.0,0.065332]
[1727933104610,0.4343735,61229.0,61228.0,0.065332]
[1727933105009,0.4343735,61229.0,61228.0,0.0346188]
[1727933106006,0.5017045,61229.0,61228.0,0.0346188]
[1727933106306,0.54468913,61229.0,61228.0,0.0346188]
[1727933106609,0.5027045,61229.0,61228.0,0.0346188]
[1727933107508,0.463731,61229.0,61228.0,0.0346188]
[1727933109711,0.102931,61229.0,61228.0,0.0346188]
[1727933109910,0.463731,61229.0,61228.0,0.0346188]
[1727933110895,0.3668,61229.0,61228.0,0.0346188]
[1727933111899,0.006,61229.0,61228.0,0.0346188]
[1727933112610,0.004,61229.0,61228.0,0.0346188]
[1727933112998,0.004,61229.0,61228.0,0.1246188]
[1727933113400,0.006,61229.0,61228.0,0.1246188]
[1727933113705,0.004,61229.0,61228.0,0.1246188]
[1727933114204,0.006,61229.0,61228.0,0.1246188]
[1727933114601,0.09022546,61229.0,61228.0,0.1246188]
[1727933114799,0.04497438,61229.0,61228.0,0.1246188]
[1727933115003,0.006,61229.0,61228.0,0.1246188]
[1727933115403,0.09022546,61229.0,61228.0,0.1246188]
[1727933116007,0.15153748,61229.0,61228.0,0.1246188]
[1727933116202,0.2873388,61229.0,61228.0,0.1246188]
[1727933116399,0.14180132,61229.0,61228.0,0.1246188]
[1727933116907,0.14180132,61229.0,61228.0,0.06623394]
[1727933117912,0.14180132,61229.0,61228.0,0.13156594]
[1727933119213,0.15195823,61229.0,61228.0,0.13156594]
[1727933119404,0.28775955,61229.0,61228.0,0.13156594]
[1727933120214,0.14180132,61229.0,61228.0,0.13156594]
[1727933121013,0.50260132,61229.0,61228.0,0.13156594]
[1727933121316,0.45102546,61229.0,61228.0,0.13156594]
[1727933121612,0.50194446,61229.0,61228.0,0.13156594]
[1727933121813,0.45102546,61229.0,61228.0,0.13156594]
[1727933122004,0.5019189,61229.0,61228.0,0.13156594]
[1727933122208,0.64788079,61229.0,61228.0,0.13156594]
[1727933122409,0.51276189,61229.0,61228.0,0.13156594]
[1727933122619,0.57809289,61229.0,61228.0,0.06623394]
[1727933122807,0.432131,61229.0,61228.0,0.06623394]
[1727933123914,0.432131,61229.0,61228.0,0.13156594]
[1727933125311,0.47055442,61229.0,61228.0,0.13156594]
[1727933125509,0.432131,61229.0,61228.0,0.13156594]